bitfinex/quotes_BTCUSD_20250620
["timestamp","ask_amount","ask_price","bid_price","bid_amount"]
[1750424812869,0.45050192,106210.0,106200.0,0.62143849]
[1750424819076,0.45050192,106210.0,106200.0,0.62143849]
[1750424819986,0.4599166,106210.0,106200.0,0.62143849]
[1750424820592,0.44108741,106210.0,106200.0,0.62143849]
[1750424821086,0.45050192,106210.0,106200.0,0.62143849]
[1750424821552,0.44108741,106210.0,106200.0,0.62143849]
[1750424822003,0.45050192,106210.0,106200.0,0.62143849]
[1750424823287,0.4599166,106210.0,106200.0,0.62143849]
[1750424823733,0.53113146,106210.0,106200.0,0.62143849]
[1750424823961,0.5405465,106210.0,106200.0,0.53965207]
[1750424824628,0.53113146,106210.0,106200.0,0.53965207]
[1750424824854,0.49993146,106210.0,106200.0,0.53965207]
[1750424825315,0.50934659,106210.0,106200.0,0.53965207]
[1750424825546,0.49993146,106210.0,106200.0,0.53965207]
[1750424825771,0.49993146,106210.0,106200.0,0.63171211]
[1750424827674,0.5093465,106210.0,106200.0,0.63171211]
[1750424828088,0.49993146,106210.0,106200.0,0.63171211]
[1750424828295,0.5093465,106210.0,106200.0,0.63171211]
[1750424828718,0.1120242,106210.0,106200.0,0.63171211]
[1750424828967,0.5416465,106210.0,106200.0,0.63171211]
[1750424829181,0.73936798,106210.0,106200.0,0.47899211]
[1750424829398,0.10260907,106210.0,106200.0,0.47899211]
[1750424829604,0.55106163,106210.0,106200.0,0.63171211]
[1750424830037,0.55106163,106210.0,106200.0,0.47899211]
[1750424830699,0.73936852,106210.0,106200.0,0.47899211]
[1750424830911,0.73936914,106210.0,106200.0,0.47899211]
[1750424831123,0.73936914,106210.0,106200.0,0.46957654]
[1750424831238,0.72995428,106210.0,106200.0,0.5302365]
[1750424831450,0.72995428,106210.0,106200.0,0.53965207]
[1750424831872,0.5322328,106210.0,106200.0,0.53965207]
[1750424833533,0.72053898,106210.0,106200.0,0.5302365]
[1750424833749,0.72995428,106210.0,106200.0,0.5302365]
[1750424833984,0.72995428,106210.0,106200.0,0.41608616]
[1750424834175,0.72053924,106210.0,106200.0,0.41608633]
[1750424834393,0.72053924,106210.0,106200.0,0.42550217]
[1750424834815,0.72053924,106210.0,106200.0,0.20893031]
[1750424835021,0.72053924,106210.0,106200.0,0.40667032]
[1750424835459,0.72053924,106210.0,106200.0,0.41608633]
[1750424836624,0.72053924,106210.0,106200.0,0.42550225]
[1750424837531,0.72053924,106210.0,106200.0,0.43491809]
[1750424838000,0.72053924,106210.0,106200.0,0.42550225]
[1750424838696,0.71112411,106210.0,106200.0,0.42550225]
[1750424839137,0.71112411,106210.0,106200.0,0.27282225]
[1750424840419,0.71112411,106210.0,106200.0,0.42550225]
[1750424841031,1.150674,106210.0,106200.0,0.42550225]
[1750424841237,1.150674,106210.0,106200.0,0.43491809]
[1750424841969,1.150674,106210.0,106200.0,0.44433384]
[1750424842285,1.150674,106210.0,106200.0,0.29165384]
[1750424842496,1.150674,106210.0,106200.0,0.41608624]
[1750424842711,1.150674,106210.0,106200.0,0.4255019]
[1750424842957,1.150674,106210.0,106200.0,0.43491747]
[1750424843170,0.96236782,106210.0,106200.0,0.43491747]
[1750424843387,1.150674,106210.0,106200.0,0.50566047]
[1750424843836,1.150674,106210.0,106200.0,0.4255019]
[1750424845143,1.150674,106210.0,106200.0,0.43491747]
[1750424845401,0.71138034,106210.0,106200.0,0.43491747]
[1750424845619,0.71138034,106210.0,106200.0,0.4255019]
[1750424851509,0.71138034,106210.0,106200.0,0.43491747]
[1750424851707,0.71138034,106210.0,106200.0,0.46890662]
[1750424853105,0.27208668,106210.0,106200.0,0.46890662]
[1750424854551,0.27208668,106210.0,106200.0,0.42550208]
[1750424855054,0.44134364,106210.0,106200.0,0.53019658]
[1750424855256,0.45075824,106210.0,106200.0,0.59189658]
[1750424855830,0.46017301,106210.0,106200.0,0.59189658]
[1750424856048,0.45075824,106210.0,106200.0,0.43921658]
[1750424856278,0.45075824,106210.0,106200.0,0.66306949]
[1750424856501,0.46017301,106210.0,106200.0,0.66306949]
[1750424856797,0.45075824,106210.0,106200.0,0.66306949]
[1750424857050,0.46017301,106210.0,106200.0,0.66306949]
[1750424857497,0.02087926,106210.0,106200.0,0.66306949]
[1750424857716,0.46017292,106210.0,106200.0,0.66306949]
[1750424857972,0.46958778,106210.0,106200.0,0.66306949]
[1750424858549,0.47900282,106210.0,106200.0,0.66306949]
[1750424858785,0.48841804,106210.0,106200.0,0.53961224]
[1750424859440,1.10660328,106210.0,106200.0,0.52078075]
[1750424859714,1.13830328,106210.0,106200.0,0.52078075]
[1750424859941,0.9499971,106210.0,106200.0,0.53019632]
[1750424860160,0.9182971,106210.0,106200.0,0.53019632]
[1750424860377,0.47900344,106210.0,106200.0,0.53019632]
[1750424860890,0.46958822,106210.0,106200.0,0.53019632]
[1750424861101,0.46017318,106210.0,106200.0,0.53019632]
[1750424861309,0.46958831,106210.0,106200.0,0.53019632]
[1750424862511,0.66730971,106210.0,106200.0,0.53019632]
[1750424862732,0.67672501,106210.0,106200.0,0.53019632]
[1750424862944,0.70842501,106210.0,106200.0,0.53015632]
[1750424863169,0.51070353,106210.0,106200.0,0.53015632]
[1750424864749,0.69900971,106210.0,106200.0,0.53015632]
[1750424865736,0.07140987,106210.0,106200.0,0.53015632]
[1750424865934,0.51070353,106210.0,106200.0,0.53015632]
[1750424868214,0.69900971,106210.0,106200.0,0.53015632]
[1750424868445,0.66730971,106210.0,106200.0,0.53015632]
[1750424869678,0.72099503,106210.0,106200.0,0.50190916]
[1750424869892,0.72099503,106210.0,106200.0,0.51132508]
[1750424870224,0.72099503,106210.0,106200.0,0.52074092]
[1750424871129,0.68979503,106210.0,106200.0,0.53015667]
[1750424872189,0.68979503,106210.0,106200.0,0.53957224]
[1750424872723,0.65789503,106210.0,106200.0,0.53957224]
[1750424873137,0.46958885,106210.0,106200.0,0.53957224]
[1750424874014,0.66731033,106210.0,106200.0,0.53957224]
[1750424877581,0.66731033,106210.0,106200.0,0.53015667]
[1750424879039,0.65789547,106210.0,106200.0,0.53015667]
[1750424880845,0.21860181,106210.0,106200.0,0.53015667]
[1750424881058,0.65789547,106210.0,106200.0,0.53015667]
[1750424881889,1.09718913,106210.0,106200.0,0.53015667]
[1750424882372,1.09718913,106210.0,106200.0,0.53957233]
[1750424882810,0.01146475,106210.0,106200.0,0.53957233]
[1750424883033,0.4695884,106210.0,106200.0,0.59018895]
[1750424883236,0.4695884,106210.0,106200.0,0.55728895]
[1750424883465,0.4695884,106210.0,106200.0,0.53957189]
[1750424884113,0.4695884,106210.0,106200.0,0.60257189]
[1750424884538,0.47900291,106210.0,106200.0,0.60257189]
[1750424884951,0.46958778,106210.0,106200.0,0.60257189]
[1750424885163,0.45075824,106210.0,106200.0,0.61841566]
[1750424885791,0.46017301,106210.0,106200.0,0.61841566]
[1750424885999,0.45075824,106210.0,106200.0,0.61841566]
[1750424886428,0.46017301,106210.0,106200.0,0.61841566]
[1750424886854,0.45075815,106210.0,106200.0,0.61841566]
[1750424887508,0.44134364,106210.0,106200.0,0.61841566]
[1750424887728,0.44134364,106210.0,106200.0,0.56216535]
[1750424887950,0.44134364,106210.0,106200.0,0.61848468]
[1750424888403,0.00204998,106210.0,106200.0,0.61848468]
[1750424888624,0.44134364,106210.0,106200.0,0.61848468]
[1750424889041,0.44134364,106210.0,106200.0,0.56216535]
[1750424889252,0.00204998,106210.0,106200.0,0.56216535]
[1750424889471,0.44134364,106210.0,106200.0,0.56216535]
[1750424890265,0.44134364,106210.0,106200.0,0.61846579]
[1750424890703,0.45075815,106210.0,106200.0,0.68846579]
[1750424890934,0.44134364,106210.0,106200.0,0.68846579]
[1750424891959,0.45075824,106210.0,106200.0,0.68846579]
[1750424892168,0.91829675,106210.0,106200.0,0.58780324]
[1750424892370,0.91829675,106210.0,106200.0,0.60663473]
[1750424892579,0.90888153,106210.0,106200.0,0.61605039]
[1750424892791,0.46958787,106210.0,106200.0,0.61605039]
[1750424893001,1.10660275,106210.0,106200.0,0.42873539]
[1750424893209,1.15798869,106210.0,106200.0,0.59079123]
[1750424893413,1.15798869,106210.0,106200.0,0.60020698]
[1750424893616,1.15798869,106210.0,106200.0,0.59079123]
[1750424894137,1.15798869,106210.0,106200.0,0.59087123]
[1750424895276,1.15798869,106210.0,106200.0,0.58145539]
[1750424895486,1.12798869,106210.0,106200.0,0.59087123]
[1750424895704,1.12798869,106210.0,106200.0,0.60028698]
[1750424895910,0.24940137,106210.0,106200.0,0.60028698]
[1750424896116,1.12798869,106210.0,106200.0,0.60028698]
[1750424896986,0.68869503,106210.0,106200.0,0.60028698]
[1750424897679,1.12798869,106210.0,106200.0,0.60028698]
[1750424898773,1.12798869,106210.0,106200.0,0.60970264]
[1750424898981,0.93968251,106210.0,106200.0,0.60970264]
[1750424899230,0.93968251,106210.0,106200.0,0.60970202]
[1750424899611,0.94909781,106210.0,106200.0,0.60028645]
[1750424900552,1.13740399,106210.0,106200.0,0.60028645]
[1750424902067,1.13740399,106210.0,106200.0,0.53028645]
[1750424903651,1.10660399,106210.0,106200.0,0.53028645]
[1750424904064,0.90888251,106210.0,106200.0,0.53970202]
[1750424905649,0.46958885,106210.0,106200.0,0.53970202]
[1750424906376,0.65789503,106210.0,106200.0,0.53970202]
[1750424906778,0.65789503,106210.0,106200.0,0.53028645]
[1750424907448,0.65789503,106210.0,106200.0,0.53970202]
[1750424907738,0.21860137,106210.0,106200.0,0.53970202]
[1750424907938,0.65789503,106210.0,106200.0,0.53970202]
[1750424908825,0.66731033,106210.0,106200.0,0.53028645]
[1750424909025,1.10660399,106210.0,106200.0,0.53028645]
[1750424909459,0.22801667,106210.0,106200.0,0.53028645]
[1750424909674,1.10660399,106210.0,106200.0,0.53028645]
[1750424910706,0.22801667,106210.0,106200.0,0.53028645]
[1750424910904,0.66731033,106210.0,106200.0,0.53028645]
[1750424913837,0.66731033,106210.0,106200.0,0.51145504]
[1750424914052,0.65789538,106210.0,106200.0,0.51145539]
[1750424914408,0.64848034,106210.0,106200.0,0.51145539]
[1750424914789,0.63906512,106210.0,106200.0,0.51145539]
[1750424915581,0.63906512,106210.0,106200.0,0.52087123]
[1750424919621,1.06894348,106210.0,106200.0,0.05630044]
[1750424919872,0.26083992,106200.0,106190.0,0.08458344]
[1750424920111,0.26083992,106200.0,106180.0,0.05630044]
[1750424920112,0.26085855,106190.0,106180.0,0.05630044]
[1750424920385,1.14886268,106190.0,106180.0,0.39725982]
[1750424920600,0.0282523,106180.0,106170.0,0.37075377]
[1750424920821,0.05995052,106190.0,106180.0,0.21661221]
[1750424921039,0.6856507,106200.0,106190.0,0.20717536]
[1750424921250,0.69506689,106200.0,106190.0,0.35035864]
[1750424921481,0.69506689,106200.0,106190.0,0.35977545]
[1750424922130,1.13436055,106200.0,106190.0,0.36919217]
[1750424922353,0.01883176,106200.0,106190.0,0.41100872]
[1750424922579,0.01883176,106200.0,106190.0,0.61840349]
[1750424922580,0.87858732,106200.0,106190.0,0.61840349]
[1750424922803,0.88358732,106200.0,106190.0,0.53918694]
[1750424923016,0.89741899,106200.0,106190.0,0.52977066]
[1750424923235,1.10457492,106200.0,106190.0,0.53918712]
[1750424923450,1.10857492,106200.0,106190.0,0.53918712]
[1750424923763,1.11799111,106200.0,106190.0,0.53918712]
[1750424923972,1.11799111,106200.0,106190.0,0.50628712]
[1750424924189,1.11399111,106200.0,106190.0,0.50628712]
[1750424925631,1.11399111,106200.0,106190.0,0.49687066]
[1750424925839,1.10457545,106200.0,106190.0,0.49687066]
[1750424926258,0.22598813,106200.0,106190.0,0.49687066]
[1750424926460,1.10457545,106200.0,106190.0,0.49687066]
[1750424926674,1.10757545,106200.0,106190.0,0.49687066]
[1750424928843,1.10757545,106200.0,106190.0,0.50628712]
[1750424929267,0.90983535,106200.0,106190.0,0.50628712]
[1750424929389,0.90041925,106200.0,106190.0,0.50628712]
[1750424930002,1.09815935,106200.0,106190.0,0.50628712]
[1750424930933,0.90983544,106200.0,106190.0,0.50628712]
[1750424931135,0.90041925,106200.0,106190.0,0.50628712]
[1750424931772,0.9004189,106200.0,106190.0,0.50628712]
[1750424931984,0.90983491,106200.0,106190.0,0.50628712]
[1750424933612,0.9004189,106200.0,106190.0,0.50628712]
[1750424933738,0.90983491,106200.0,106190.0,0.50628712]
[1750424934733,0.9004189,106200.0,106190.0,0.50628712]
[1750424935149,0.90983491,106200.0,106190.0,0.50628712]
[1750424935493,0.9004189,106200.0,106190.0,0.50628712]
[1750424935843,0.02183158,106200.0,106190.0,0.50628712]
[1750424936053,0.90983421,106200.0,106190.0,0.50628712]
[1750424936399,0.91925022,106200.0,106190.0,0.50628712]
[1750424939623,1.10757413,106200.0,106190.0,0.35368712]
[1750424939840,0.216592,106190.0,106180.0,0.41612646]
[1750424940036,1.09517932,106190.0,106180.0,0.51140539]
[1750424940244,1.1045964,106190.0,106180.0,0.51140593]
[1750424940520,1.1045964,106190.0,106180.0,0.52082345]
[1750424940908,1.1045964,106190.0,106180.0,0.52082389]
[1750424940909,1.1677964,106190.0,106180.0,0.52082389]
[1750424941321,1.1677964,106190.0,106180.0,0.46452345]
[1750424941554,1.15837985,106190.0,106180.0,0.46452363]
[1750424941767,1.15837985,106190.0,106180.0,0.47394133]
[1750424941981,1.15837985,106190.0,106180.0,0.516367]
[1750424942155,1.15837985,106190.0,106180.0,0.47394133]
[1750424942362,1.14996304,106190.0,106180.0,0.47394133]
[1750424942592,1.14996304,106190.0,106180.0,0.48335894]
[1750424943536,1.14996304,106190.0,106180.0,0.4833585]
[1750424944523,1.14816304,106190.0,106180.0,0.48335805]
[1750424946664,1.14816304,106190.0,106180.0,0.33071805]
[1750424947106,1.14816304,106190.0,106180.0,0.32130062]
[1750424948505,1.18736304,106190.0,106180.0,0.32130062]
[1750424949466,1.18736304,106190.0,106180.0,0.37760106]
[1750424949900,1.18736304,106190.0,106180.0,0.38701849]
[1750424950119,0.11101672,106190.0,106180.0,0.38701849]
[1750424950331,0.53844374,106190.0,106180.0,0.38701804]
[1750424950539,0.9777374,106190.0,106180.0,0.38701804]
[1750424951388,0.9470374,106190.0,106180.0,0.38701804]
[1750424951603,0.50774374,106190.0,106180.0,0.38701804]
[1750424952074,0.9470374,106190.0,106180.0,0.38701804]
[1750424952704,0.001,106190.0,106180.0,0.53949742]
[1750424952913,0.44029366,106190.0,106180.0,0.61574236]
[1750424953383,0.001,106190.0,106180.0,0.61574236]
[1750424953611,0.001,106190.0,106180.0,0.63419847]
[1750424954078,0.001,106190.0,106180.0,0.66248347]
[1750424954255,0.44029366,106190.0,106180.0,0.66248347]
[1750424955390,0.001,106190.0,106180.0,1.44177713]
[1750424956238,0.001,106190.0,106180.0,1.00248347]
[1750424956450,0.001,106190.0,106180.0,1.44177713]
[1750424956870,0.001,106190.0,106180.0,1.00248347]
[1750424957069,0.001,106190.0,106180.0,1.44177713]
[1750424957896,0.001,106190.0,106180.0,1.00248347]
[1750424958109,0.001,106190.0,106180.0,1.44177713]
[1750424962886,0.001,106190.0,106180.0,1.00248347]
[1750424965546,0.001,106190.0,106180.0,1.07887853]
[1750424965768,0.44029366,106190.0,106180.0,1.07887853]
[1750424966796,0.001,106190.0,106180.0,1.07887853]
[1750424967024,0.44029366,106190.0,106180.0,1.07887853]
[1750424978579,0.001,106190.0,106180.0,1.07887853]
[1750424978788,0.44029366,106190.0,106180.0,1.07887853]
[1750424979734,0.001,106190.0,106180.0,1.97349509]
[1750424979966,0.00016895,106190.0,106180.0,2.10645672]
[1750424980968,0.00016895,106190.0,106180.0,1.66698009]
[1750424981606,0.00016895,106190.0,106180.0,1.91698009]
[1750424982288,2.449e-05,106190.0,106180.0,1.91698009]
[1750424982738,4.998e-05,106210.0,106200.0,0.55657142]
[1750424982949,4.998e-05,106210.0,106200.0,1.01836483]
[1750424983580,4.998e-05,106210.0,106200.0,1.45747552]
[1750424984001,4.998e-05,106210.0,106200.0,1.48575252]
[1750424984207,0.00404998,106210.0,106200.0,1.48575252]
[1750424984647,4.998e-05,106210.0,106200.0,1.48575252]
[1750424984851,4.998e-05,106210.0,106200.0,1.48775252]
[1750424985080,4.998e-05,106210.0,106200.0,1.48975252]
[1750424985793,4.998e-05,106210.0,106200.0,1.65429337]
[1750424986492,4.998e-05,106210.0,106200.0,1.21509077]
[1750424986732,4.998e-05,106210.0,106200.0,1.65420146]
[1750424987197,4.998e-05,106210.0,106200.0,1.57930596]
[1750424987443,4.998e-05,106210.0,106200.0,1.19019527]
[1750424987717,4.998e-05,106210.0,106200.0,1.72304023]
[1750424988207,4.998e-05,106210.0,106200.0,1.32308954]
[1750424988441,4.998e-05,106210.0,106200.0,1.76220023]
[1750424989135,4.998e-05,106210.0,106200.0,1.76296023]
[1750424989576,4.998e-05,106210.0,106200.0,1.66922596]
[1750424989799,4.998e-05,106210.0,106200.0,1.23011527]
[1750424990009,4.998e-05,106210.0,106200.0,1.66930596]
[1750424990246,4.998e-05,106210.0,106200.0,1.73930596]
[1750424990465,4.998e-05,106210.0,106200.0,1.24020478]
[1750424990669,4.998e-05,106210.0,106200.0,1.21020478]
[1750424990876,4.998e-05,106210.0,106200.0,0.90676478]
[1750424991125,4.998e-05,106210.0,106200.0,1.06020478]
[1750424992640,4.998e-05,106210.0,106200.0,0.93716478]
[1750424992879,4.998e-05,106210.0,106200.0,0.44199101]
[1750424992880,0.69938153,106210.0,106200.0,0.44199101]
[1750424993097,0.69938153,106210.0,106200.0,0.45341692]
[1750424993098,0.76678664,106210.0,106200.0,0.45341692]
[1750424993316,0.76678664,106210.0,106200.0,0.44397168]
[1750424993542,0.32767595,106210.0,106200.0,0.44397168]
[1750424993787,0.32767595,106210.0,106200.0,0.37197168]
[1750424993788,0.76678664,106210.0,106200.0,0.37197168]
[1750424994006,0.75737196,106210.0,106200.0,0.35317992]
[1750424994454,0.75737196,106210.0,106200.0,0.36259576]
[1750424994865,0.74795719,106210.0,106200.0,0.36259576]
[1750424995500,0.74795719,106210.0,106200.0,0.36059576]
[1750424995926,0.3108465,106210.0,106200.0,0.36059576]
[1750424996145,0.71079719,106210.0,106200.0,0.36059576]
[1750424996368,0.00204998,106210.0,106200.0,0.60113899]
[1750424996575,0.00204998,106210.0,106200.0,0.72305016]
[1750424996999,0.00204998,106210.0,106200.0,0.68985016]
[1750424997456,4.998e-05,106210.0,106200.0,0.68985016]
[1750424998390,4.998e-05,106210.0,106200.0,0.69185016]
[1750424999547,4.998e-05,106210.0,106200.0,0.69385016]
[1750425000511,4.998e-05,106210.0,106200.0,0.72415016]
[1750425001107,4.998e-05,106210.0,106200.0,0.75242916]
[1750425003007,4.998e-05,106210.0,106200.0,0.67618422]
[1750425003834,4.998e-05,106210.0,106200.0,0.64588422]
[1750425008262,4.998e-05,106210.0,106200.0,0.58977305]
[1750425014517,4.998e-05,106210.0,106200.0,0.66458341]
[1750425016128,4.998e-05,106210.0,106200.0,0.58977305]
[1750425016445,4.998e-05,106210.0,106200.0,0.66458341]
[1750425018900,4.998e-05,106210.0,106200.0,0.73458341]
[1750425020663,0.43916067,106210.0,106200.0,0.54854341]
[1750425020886,0.06174998,106210.0,106200.0,0.70222341]
[1750425021116,0.50086067,106210.0,106200.0,0.70222341]
[1750425021799,0.46916067,106210.0,106200.0,0.70222341]
[1750425024023,0.49946067,106210.0,106200.0,0.70210341]
[1750425025259,0.46916067,106210.0,106200.0,0.54854341]
[1750425025476,0.50216067,106210.0,106200.0,0.70210341]
[1750425025922,0.50216067,106210.0,106200.0,0.54854341]
[1750425026131,0.51157535,106210.0,106200.0,0.70206341]
[1750425026344,0.51157535,106210.0,106200.0,0.62725305]
[1750425027063,0.50216067,106210.0,106200.0,0.62725305]
[1750425027288,0.51157527,106210.0,106200.0,0.62725305]
[1750425027739,0.50216067,106210.0,106200.0,0.62725305]
[1750425028503,0.50216067,106210.0,106200.0,0.68356231]
[1750425029172,0.50216067,106210.0,106200.0,0.68355826]
[1750425030043,0.51157527,106210.0,106200.0,0.68355826]
[1750425030261,0.51157518,106210.0,106200.0,0.68355826]
[1750425031356,0.52098978,106210.0,106200.0,0.68355826]
[1750425033128,0.52098978,106210.0,106200.0,0.68375826]
[1750425033422,0.52098978,106210.0,106200.0,0.68371826]
[1750425035201,0.52098978,106210.0,106200.0,0.61371826]
[1750425035419,0.51157518,106210.0,106200.0,0.61371826]
[1750425036506,0.50216067,106210.0,106200.0,0.61371826]
[1750425037424,0.51157518,106210.0,106200.0,0.61371826]
[1750425038315,0.50216067,106210.0,106200.0,0.61371826]
[1750425038996,0.51157527,106210.0,106200.0,0.61371826]
[1750425039198,0.51157527,106210.0,106200.0,0.30515554]
[1750425039418,0.52098995,106210.0,106200.0,0.45871554]
[1750425039868,0.53982003,106210.0,106200.0,0.45875554]
[1750425040092,0.53981994,106210.0,106200.0,0.40245033]
[1750425040309,0.53981994,106210.0,106200.0,0.39303467]
[1750425040534,0.98834585,106210.0,106200.0,0.36475567]
[1750425040751,0.54923516,106210.0,106200.0,0.36475567]
[1750425040968,0.54923507,106210.0,106200.0,0.37417124]
[1750425041288,0.54923507,106210.0,106200.0,0.37217124]
[1750425041505,0.54923507,106210.0,106200.0,0.21857124]
[1750425041729,0.5304049,106210.0,106200.0,0.4385632]
[1750425041950,0.52098995,106210.0,106200.0,0.4365632]
[1750425042166,0.53040481,106210.0,106200.0,0.4365632]
[1750425043229,0.53981985,106210.0,106200.0,0.4365632]
[1750425043444,0.53040481,106210.0,106200.0,0.4365632]
[1750425043880,0.53040481,106210.0,106200.0,0.37017124]
[1750425044309,0.53040472,106210.0,106200.0,0.37017124]
[1750425044526,0.52098995,106210.0,106200.0,0.37017124]
[1750425044755,0.53040472,106210.0,106200.0,0.37017124]
[1750425044968,0.52098995,106210.0,106200.0,0.37017124]
[1750425046496,0.51157527,106210.0,106200.0,0.37017124]
[1750425046955,0.06304998,106210.0,106200.0,0.52601161]
[1750425047171,0.43916067,106210.0,106200.0,0.52601161]
[1750425047629,0.43916067,106210.0,106200.0,0.40069461]
[1750425047847,0.50516067,106210.0,106200.0,0.21657124]
[1750425048060,0.51457518,106210.0,106200.0,0.21657124]
[1750425048507,0.52398986,106210.0,106200.0,0.20715567]
[1750425048692,0.52398986,106210.0,106200.0,0.21657124]
[1750425049357,0.51457518,106210.0,106200.0,0.21657124]
[1750425049576,0.52398986,106210.0,106200.0,0.21657124]
[1750425049794,0.51457518,106210.0,106200.0,0.21657124]
[1750425050479,0.52398986,106210.0,106200.0,0.21657124]
[1750425050698,0.51457518,106210.0,106200.0,0.21657124]
[1750425050908,0.52398986,106210.0,106200.0,0.21657124]
[1750425051124,0.51457518,106210.0,106200.0,0.21657124]
[1750425051567,0.52398986,106210.0,106200.0,0.21657124]
[1750425052220,0.51457518,106210.0,106200.0,0.21657124]
[1750425052454,0.52398995,106210.0,106200.0,0.21657124]
[1750425052668,0.52398986,106210.0,106200.0,0.21657124]
[1750425052878,0.51457518,106210.0,106200.0,0.21657124]
[1750425053581,0.52398995,106210.0,106200.0,0.21657124]
[1750425053784,0.51457518,106210.0,106200.0,0.21657124]
[1750425053993,0.52398986,106210.0,106200.0,0.21657124]
[1750425055850,0.51457518,106210.0,106200.0,0.21657124]
[1750425056959,0.52398978,106210.0,106200.0,0.21657124]
[1750425057519,0.53340455,106210.0,106200.0,0.21657124]
[1750425057724,0.52398978,106210.0,106200.0,0.21657124]
[1750425058133,0.53340455,106210.0,106200.0,0.21657124]
[1750425058570,0.52398978,106210.0,106200.0,0.21657124]
[1750425058807,0.53340455,106210.0,106200.0,0.21657124]
[1750425059638,0.53340464,106210.0,106200.0,0.21657124]
[1750425059864,0.53340455,106210.0,106200.0,0.21657124]
[1750425060507,0.53340446,106210.0,106200.0,0.21657124]
[1750425060719,0.52398978,106210.0,106200.0,0.21657124]
[1750425061787,0.53340446,106210.0,106200.0,0.36997124]
[1750425062021,0.54281932,106210.0,106200.0,0.36997124]
[1750425062456,0.53340446,106210.0,106200.0,0.36997124]
[1750425062757,0.54281932,106210.0,106200.0,0.36997124]
[1750425063103,0.55223427,106210.0,106200.0,0.36997124]
[1750425064126,0.54281932,106210.0,106200.0,0.36997124]
[1750425064748,0.53340446,106210.0,106200.0,0.36997124]
[1750425064963,0.54281932,106210.0,106200.0,0.36997124]
[1750425065424,0.09429377,106210.0,106200.0,0.36997124]
[1750425065637,0.50040446,106210.0,106200.0,0.42573726]
[1750425065863,0.43916067,106210.0,106200.0,0.42573726]
[1750425066310,0.43916067,106210.0,106200.0,0.48200527]
[1750425066539,0.43916067,106210.0,106200.0,0.42623925]
[1750425066768,0.43916067,106210.0,106200.0,0.45873925]
[1750425067662,4.998e-05,106210.0,106200.0,0.58641818]
[1750425068095,0.43916067,106210.0,106200.0,0.58641818]
[1750425074973,4.998e-05,106210.0,106200.0,0.58641818]
[1750425075207,4.998e-05,106210.0,106200.0,0.67610641]
[1750425075660,4.998e-05,106210.0,106200.0,0.6198384]
[1750425076343,4.998e-05,106210.0,106200.0,0.67613154]
[1750425076585,4.998e-05,106210.0,106200.0,1.1339731]
[1750425076799,4.998e-05,106210.0,106200.0,0.69486241]
[1750425077034,4.998e-05,106210.0,106200.0,0.72314141]
[1750425079299,4.998e-05,106210.0,106200.0,0.6481174]
[1750425079756,4.998e-05,106210.0,106200.0,0.72314141]
[1750425080493,4.998e-05,106210.0,106200.0,0.6481174]
[1750425080713,4.998e-05,106210.0,106200.0,0.6480374]
[1750425086064,4.998e-05,106210.0,106200.0,0.7042713]
[1750425086270,4.998e-05,106210.0,106200.0,0.6480374]
[1750425086825,4.998e-05,106210.0,106200.0,0.70426935]
[1750425087042,4.998e-05,106210.0,106200.0,0.70426964]
[1750425087277,4.998e-05,106210.0,106200.0,0.6480374]
[1750425089536,4.998e-05,106210.0,106200.0,0.4947174]
[1750425089737,4.998e-05,106210.0,106200.0,0.6479174]
[1750425090903,0.43917089,106210.0,106200.0,0.6479174]
[1750425092741,4.998e-05,106210.0,106200.0,0.6479174]
[1750425092972,4.998e-05,106210.0,106200.0,1.08703831]
[1750425093383,4.998e-05,106210.0,106200.0,0.6479174]
[1750425094113,0.43917089,106210.0,106200.0,0.6479174]
[1750425094334,4.998e-05,106210.0,106200.0,0.6479174]
[1750425094541,0.43917089,106210.0,106200.0,0.6479174]
[1750425094727,0.43917089,106210.0,106200.0,0.72294141]
[1750425094964,4.998e-05,106210.0,106200.0,0.6479174]
[1750425095177,4.998e-05,106210.0,106200.0,0.6477974]
[1750425095391,4.998e-05,106210.0,106200.0,0.65792141]
[1750425095392,0.43917089,106210.0,106200.0,0.65792141]
[1750425095679,0.43917089,106210.0,106200.0,0.5828974]
[1750425096626,0.43917089,106210.0,106200.0,0.4298174]
[1750425096863,0.46936656,106210.0,106200.0,0.5828974]
[1750425097058,0.46936656,106210.0,106200.0,0.61087762]
[1750425097502,0.46936656,106210.0,106200.0,0.5546184]
[1750425099472,0.47878107,106210.0,106200.0,0.5546184]
[1750425099885,0.46936656,106210.0,106200.0,0.5546184]
[1750425101978,0.43926656,106210.0,106200.0,0.5546184]
[1750425102198,0.44868107,106210.0,106200.0,0.5546184]
[1750425102418,0.43926656,106210.0,106200.0,0.5546184]
[1750425102665,0.47116656,106210.0,106200.0,0.5546184]
[1750425107245,4.998e-05,106210.0,106200.0,0.5546184]
[1750425107457,4.998e-05,106210.0,106200.0,0.69304241]
[1750425107902,4.998e-05,106210.0,106200.0,0.72132141]
[1750425113686,4.998e-05,106210.0,106200.0,0.79132141]
[1750425117068,0.43915972,106210.0,106200.0,0.79132141]
[1750425118379,0.43915972,106210.0,106200.0,0.75872141]
[1750425122866,4.998e-05,106210.0,106200.0,0.60564141]
[1750425123101,4.998e-05,106210.0,106200.0,0.78852141]
[1750425123102,0.43915972,106210.0,106200.0,0.78852141]
[1750425125065,0.50215972,106210.0,106200.0,0.72772141]
[1750425125272,0.46955972,106210.0,106200.0,0.6526974]
[1750425125490,0.43915972,106210.0,106200.0,0.6526974]
[1750425125778,0.43915972,106210.0,106200.0,0.72772141]
[1750425129506,0.46995972,106210.0,106200.0,0.72772141]
[1750425129709,0.46995972,106210.0,106200.0,0.65772141]
[1750425130833,0.46995972,106210.0,106200.0,0.5826974]
[1750425131678,0.43915972,106210.0,106200.0,0.5826974]
[1750425133205,4.998e-05,106210.0,106200.0,0.5826974]
[1750425133416,0.43915972,106210.0,106200.0,0.5826974]
[1750425134462,0.43915972,106210.0,106200.0,0.65772141]
[1750425136937,0.43915972,106210.0,106200.0,0.5826974]
[1750425137766,0.43915972,106210.0,106200.0,0.65772141]
[1750425140856,4.998e-05,106210.0,106200.0,0.65772141]
[1750425141011,0.43915972,106210.0,106200.0,0.65772141]
[1750425141894,0.43915972,106210.0,106200.0,0.5826974]
[1750425145530,0.43915972,106210.0,106200.0,0.65772141]
[1750425145920,0.43915972,106210.0,106200.0,0.5826974]
[1750425146339,0.43915972,106210.0,106200.0,0.65772141]
[1750425147352,4.998e-05,106210.0,106200.0,0.65772141]
[1750425147560,0.43915972,106210.0,106200.0,0.65772141]
[1750425151956,4.998e-05,106210.0,106200.0,0.65772141]
[1750425152172,0.43915972,106210.0,106200.0,0.65772141]
[1750425153835,4.998e-05,106210.0,106200.0,0.65772141]
[1750425154035,0.43915972,106210.0,106200.0,0.65772141]
[1750425156557,0.43915972,106210.0,106200.0,0.50484141]
[1750425156991,0.43915972,106210.0,106200.0,0.65768141]
[1750425157221,0.47055972,106210.0,106200.0,0.65768141]
[1750425157455,0.47055972,106210.0,106200.0,0.62940241]
[1750425159320,0.47055972,106210.0,106200.0,0.65768441]
[1750425159539,0.43915972,106210.0,106200.0,0.65768441]
[1750425162142,4.998e-05,106210.0,106200.0,0.65768441]
[1750425162402,0.43915972,106210.0,106200.0,0.76522935]
[1750425163592,0.43915972,106210.0,106200.0,0.59929618]
[1750425165523,4.998e-05,106210.0,106200.0,0.88556592]